Cogmind - Beta 13 @@@ ROGUE MODE // 2024.04.15 @ 19:49:48 Player: Gabe+Kate4EVR Result: Self-destructed Performance ------------- Evolutions (1) 500 Regions Visited (2) 400 Robots Destroyed (33) 165 Value Destroyed (749) 749 Prototype IDs (2) 40 Alien Tech Used (0) 0 Bonus (0) 0 TOTAL SCORE: 1854 Bonus ------- None Cogmind --------- Core Integrity 172/400 Matter 280/300 Energy 125/125 System Corruption 0% Temperature Cool (0) Movement Flying (114) Ox1 Location -9/Materials Parts ------- > --- POWER (1) -------- Light Ion Engine > --- PROPULSION (4) --- Flight Unit Flight Unit Flight Unit > --- UTILITY (2) ------ Small Storage Unit Hardened Light Armor Plating > --- WEAPON (2) ------- Improved EM Shotgun > --- INVENTORY (8) ---- Structural Scanner Hardened Light Armor Plating Hacking Suite Improved EM Shotgun Small Laser Advanced Beam Cannon Heavy Assault Rifle EMP Blaster Peak State ------------ > --- POWER ------------ Light Ion Engine > --- PROPULSION ------- Flight Unit Flight Unit Flight Unit Flight Unit > --- UTILITY ---------- Small Storage Unit Hardened Light Armor Plating > --- WEAPON ----------- Improved EM Shotgun Improved EM Shotgun > --- INVENTORY -------- Structural Scanner Sensor Array Hardened Light Armor Plating Small Laser Advanced Beam Cannon Heavy Assault Rifle EMP Blaster [Rating: 15] Favorites ----------- Power Light Ion Engine Engine Light Ion Engine Propulsion Flight Unit Leg Aluminum Leg Flight Unit Flight Unit Utility Small Storage Unit Device Structural Scanner Storage Small Storage Unit Processor Visual Processing Unit Protection Hardened Light Armor Plating Weapon Beam Cannon Energy Gun Medium Laser Energy Cannon Beam Cannon Ballistic Gun Assault Rifle Build | -11 -10 -9 ------- Run | Yrd Mat Mat Slots Evolved 2 | . . 2 Power . | . . . Propulsion 2 | . . 2 Utility . | . . . Weapon . | . . . Parts Attached 57 | 6 11 40 Power 8 | 1 1 6 Engine 8 | 1 1 6 Core . | . . . Reactor . | . . . Propulsion 21 | 2 2 17 Treads . | . . . Leg 6 | 2 . 4 Wheel . | . . . Hover . | . . . Flight 15 | . 2 13 Utility 7 | 1 4 2 Device 1 | . 1 . Storage 3 | 1 2 . Processor 1 | . 1 . Hackware . | . . . Protection 2 | . . 2 Artifact . | . . . Weapon 21 | 2 4 15 Energy Gun 6 | 2 . 4 Energy Cannon 6 | . 2 4 Ballistic Gun 9 | . 2 7 Ballistic Cannon . | . . . Launcher . | . . . Special Weapon . | . . . Impact Weapon . | . . . Slashing Weapon . | . . . Piercing Weapon . | . . . Special Melee Weapon . | . . . Unidentified Prototypes 2 | . . 2 Parts Lost 14 | . 3 11 Power 3 | . 1 2 Propulsion 8 | . 2 6 Utility . | . . . Weapon 3 | . . 3 Highest Loss Streak 5 | . 2 5 To Critical Strikes . | . . . Average Slot Usage (%) 88 | . 87 88 Engine 6 | . 4 9 Leg 7 | . 12 3 Flight 25 | . 14 36 Device 5 | . 10 . Storage 13 | . 15 11 Processor 3 | . 1 5 Protection 2 | . . 5 Energy Gun 8 | . 11 6 Energy Cannon 7 | . 11 3 Ballistic Gun 7 | . 5 8 Naked Turns . | . . . Heaviest Build 22 | 12 22 21 Greatest Support 40 | 20 20 40 Greatest Overweight (x) 5 | . 4 5 Average Overweight (x) . | . . . Largest Inventory Capacity 10 | 8 10 8 Average Capacity 8 | 6 9 8 Most Carried 8 | 1 7 8 Average Carried 5 | . 3 6 Final Capacity 8 | 8 8 8 Final Carried 8 | 1 7 8 Class Distribution -------------------- 53% | Mutant 29% | Scavenger-Sprinter 17% | Scavenger-Mutant Dominant Class ---------------- Mutant | -10/Materials Scavenger-Sprinter | -9/Materials Resources | -11 -10 -9 ----------- Run | Yrd Mat Mat Matter Collected 1050 | 124 195 731 Remotely . | . . . Salvage Created 1058 | . 223 835 Parts 60 | . 14 46 Haulers Intercepted 2 | . . 2 Recyclers Shooed . | . . . Parts Field Recycled . | . . . Retrieved Matter . | . . . Parts Self-Destructed . | . . . Prevented . | . . . Kills | -11 -10 -9 ------- Run | Yrd Mat Mat Combat Hostiles Destroyed 26 | . 8 18 Guns 23 | . 8 15 Cannons 3 | . . 3 Classes Destroyed 8 | . 4 4 Worker 1 | . 1 . Tunneler 1 | . . 1 Hauler 2 | . . 2 Operator 1 | . . 1 Watcher 2 | . 1 1 Swarmer 11 | . 6 5 Grunt 12 | . 2 10 Sentry 3 | . . 3 Best Kill Streak 7 | . 4 7 Combat Bots Only 6 | . 4 6 Max Kills in Single Turn 2 | . 2 1 Gunslinging 1 | . 1 . Exploded . | . . . Melee . | . . . Uniques/NPCs Destroyed . | . . . Combat | -11 -10 -9 -------- Run | Yrd Mat Mat Hostile Shots Fired 214 | . 65 149 Missed 72 | . 15 57 Damage Taken 1521 | . 498 1023 Core 279 | . 51 228 Absorbed by Shields . | . . . Core Remaining (%) 89 | 100 79 . Volleys Fired 117 | . 42 75 Largest 2 | . 2 2 Hottest 120 | . 120 120 Shots Fired 200 | . 81 119 Gun 159 | . 59 100 Cannon 41 | . 22 19 Launcher . | . . . Special . | . . . Kinetic 108 | . 21 87 Thermal 82 | . 60 22 Explosive . | . . . Electromagnetic 10 | . . 10 Robot Hit Streak 10 | . 7 10 Robot Miss Streak 5 | . 5 5 Penetration Max . | . . . Secondary Targets 3 | . 1 2 Max Gunslinging Chain 1 | . 1 1 Shots Hit Robots 118 | . 42 76 Core Hits 50 | . 13 37 Critical Kills . | . . . Critical Parts Destroyed 1 | . . 1 Critical Strikes 2 | . 1 1 Burn 1 | . 1 . Destroy 1 | . . 1 Melee Attacks . | . . . Impact . | . . . Slashing . | . . . Piercing . | . . . Sneak Attacks . | . . . Combat Hostiles . | . . . Follow-up Attacks . | . . . Damage Inflicted 1805 | . 583 1222 Guns 1367 | . 373 994 Cannons 437 | . 209 228 Explosions . | . . . Melee . | . . . Ramming 1 | . 1 . Kinetic 971 | . 135 836 Thermal 696 | . 447 249 Explosive . | . . . Electromagnetic 137 | . . 137 Impact . | . . . Slashing . | . . . Piercing . | . . . Highest Corruption . | . . . Average Corruption . | . . . Corruption Purged . | . . . Corruption Blocked . | . . . Overload Shots . | . . . Overflow Damage 21 | . 21 . Projectiles 21 | . 21 . Explosions . | . . . Melee . | . . . Knockbacks . | . . . Impact . | . . . Kinetic . | . . . Secondary . | . . . Self-Inflicted Damage . | . . . Shots . | . . . Rammed 1 | . 1 . Targets Rammed 1 | . 1 . Kicked . | . . . Crushed . | . . . Highest Temperature 241 | . 241 225 Average Temperature 73 | . 96 56 Received Heat Transfer 501 | . 108 393 Siege Activations . | . . . Robots Corrupted . | . . . Combat Hostiles . | . . . Parts Fried . | . . . Impact Corruptions . | . . . Robots Melted . | . . . Combat Hostiles . | . . . Parts Melted 4 | . 2 2 Heat Transferred 1752 | . 1221 531 Parts Sabotaged . | . . . Parts Stolen . | . . . Parts Stripped . | . . . Power Chain Reactions . | . . . Alert | -11 -10 -9 ------- Run | Yrd Mat Mat Peak Influence 296 | . 230 296 Initial 24 | . . 24 Average 112 | . 114 124 Maximum Alert Level 1 | . 1 1 Low Security (%) 75 | 100 65 82 Level 1 24 | . 35 17 Level 2 . | . . . Level 3 . | . . . Level 4 . | . . . Level 5 . | . . . High Security . | . . . Max Security . | . . . Squads Dispatched 4 | . 1 3 Investigation 3 | . 1 2 Extermination . | . . . Reinforcement 1 | . . 1 Assault . | . . . Garrison . | . . . Intercept . | . . . Searches Triggered . | . . . Construction Impeded . | . . . Haulers Reinforced . | . . . Active Scanning Responses . | . . . Cargo Convoy Interrupts . | . . . Stealth | -11 -10 -9 --------- Run | Yrd Mat Mat Distress Signals 1 | . 1 . Communications Jammed . | . . . Distress Signals . | . . . Times Spotted 47 | . 18 29 Peak Tracking Total 6 | . 6 6 Tactical Retreats 1 | . 1 . Traps | -11 -10 -9 ------- Run | Yrd Mat Mat Traps Triggered 1 | . 1 . Indirectly . | . . . Trap Hack Attempts . | . . . Triggered . | . . . Disarmed . | . . . Reprogrammed . | . . . Reused . | . . . Traps Extracted . | . . . Installed . | . . . Triggered . | . . . Machines | -11 -10 -9 ---------- Run | Yrd Mat Mat Machines Disabled 1 | . . 1 Max in Single Turn 1 | . . 1 Machines Repaired . | . . . Machines Dismantled . | . . . Machines Sabotaged . | . . . Overloaded Fab Kills . | . . . Hacking | -11 -10 -9 --------- Run | Yrd Mat Mat Machines Accessed 5 | . . 5 Terminals 5 | . . 5 Fabricators . | . . . Repair Stations . | . . . Recycling Units . | . . . Scanalyzers . | . . . Garrison Access . | . . . Total Hacks 10 | . . 10 Successful 5 | . . 5 Failed 5 | . . 5 Catastrophic 3 | . . 3 Database Lockouts . | . . . Manual 2 | . . 2 Terminals 10 | . . 10 Fabricators . | . . . Repair Stations . | . . . Recycling Units . | . . . Scanalyzers . | . . . Garrison Access . | . . . Terminal Hacks 5 | . . 5 Robot Analysis 1 | . . 1 Unreport Threat 2 | . . 2 Registered Components 1 | . . 1 Zone Layout 1 | . . 1 Fabricator Hacks . | . . . Repair Station Hacks . | . . . Recycling Unit Hacks . | . . . Scanalyzer . | . . . Garrison Access Hacks . | . . . Unauthorized Hacks . | . . . Terminals . | . . . Fabricators . | . . . Repair Stations . | . . . Recycling Units . | . . . Scanalyzers . | . . . Garrison Access . | . . . Data Cores Recovered 2 | . . 2 Used 1 | . . 1 Hacking Detections 4 | . . 4 Full Trace Events 2 | . . 2 Feedback Events . | . . . Feedback Blocked . | . . . Robot Schematics Acquired . | . . . Robots Built . | . . . Authchips . | . . . Time . | . . . Total Robot Build Rating . | . . . Part Schematics Acquired . | . . . Parts Built . | . . . Authchips . | . . . Time . | . . . Total Part Build Rating . | . . . Parts Repaired . | . . . Time . | . . . Parts Recycled . | . . . Recycled Matter . | . . . Retrieved Matter . | . . . Retrieved Components . | . . . Parts Scanalyzed . | . . . Part Schematics Acquired . | . . . Parts Damaged . | . . . Bothacking | -11 -10 -9 ------------ Run | Yrd Mat Mat Used RIF Installer . | . . . Robots Hacked . | . . . Non-combat . | . . . Combat . | . . . Robot Hacks Applied . | . . . Relay Couplers Released . | . . . Fabnet Peak Effective % . | . . . Robots Rewired . | . . . Allies Hacked . | . . . Hacks Repelled . | . . . Allies | -11 -10 -9 -------- Run | Yrd Mat Mat Total Allies . | . . . Largest Group . | . . . Highest-Rated Group . | . . . Highest-Rated Ally . | . . . Total Orders . | . . . Ally Attacks . | . . . Total Damage . | . . . Kills . | . . . Allies Corrupted . | . . . Allies Melted . | . . . Intel | -11 -10 -9 ------- Run | Yrd Mat Mat Robot Analysis Total 1 | . . 1 Derelict Logs Recovered . | . . . Drone Launches . | . . . Drone Recoveries . | . . . Exploration | -11 -10 -9 ------------- Run | Yrd Mat Mat Turns Passed 1138 | 68 520 550 Spaces Moved 773 | 51 271 451 Core 4 | 3 1 . Treads . | . . . Legs 172 | 48 93 31 Wheels . | . . . Hover . | . . . Flight 597 | . 177 420 Fastest Speed 31 | 50 37 31 Average Speed 81 | 115 132 47 Slowest Speed 440 | 120 280 440 Overloaded Moves . | . . . Propulsion Burnouts . | . . . Robots Hopped 10 | . . 10 Cave-ins Triggered . | . . . Exploration Rate (%) 20 | 3 28 31 Regions Visited 2 Branch Regions . Pre-discovered Areas . | . . . Known Exits Taken . | . . . Unknown Exits Taken 2 | 1 1 . Scrap Searched . | . . . Spaces Dug . | . . . Terrain Destroyed . | . . . Melee . | . . . Projectile . | . . . AOE . | . . . Terrain Rammed . | . . . Walls Destroyed . | . . . Machines Disabled . | . . . Actions | -11 -10 -9 --------- Run | Yrd Mat Mat Total 1081 | 57 350 674 Wait 77 | . 10 67 Move 753 | 50 271 432 Hop 9 | . . 9 Pick Up 23 | 1 6 16 Fast Attach 36 | 6 10 20 Attach 13 | . 1 12 Detach 12 | . 6 6 Swap 8 | . . 8 Drop 33 | . 4 29 Fire 117 | . 42 75 Melee . | . . . Ram . | . . . Kick . | . . . Crush . | . . . Escape Stasis . | . . . Rewire . | . . . Trap . | . . . Miscellaneous . | . . . Route ------- -11/Scrapyard -10/Materials -9/Materials History --------- Turn | Location | Event 6 | -11/Scrapyard | Discovered new exit (range 16) 69 | -11/Scrapyard | Entered Materials 214 | -10/Materials | Discovered new exit (range 16) 303 | -10/Materials | Build established: Mutant 589 | -10/Materials | Entered another Materials area 589 | -9/Materials | Evolved 2 slots: Propulsion x2 846 | -9/Materials | Lost 5 parts (1p2n2w) 1002 | -9/Materials | Core integrity fell below 50% 1139 | -9/Materials | Self-destructed Last Messages --------------- 01039_ K-01 Serf collects debris. 01043_ Acquired 47 matter. 01044_ Acquired 31 matter. 01046_ Acquired Aluminum Leg. 01052_ Dropped Flight Unit. 01052_ Acquired Hacking Suite. 01059_ Acquired 10 matter. 01062_ K-01 Serf collects debris. 01066_ Dropped Aluminum Leg. 01068_ Acquired Flight Unit. 01069_ K-01 Serf collects debris. 01074_ Acquired Flight Unit. 01080_ Acquired 20 matter. 01099_ K-01 Serf cleans the Terminal. 01106_ Acquired Flight Unit. 01110_ Dropped Ion Engine. 01111_ Acquired Lgt. Ion Engine. 01112_ Dropped Imp. EM Shotgun. 01115_ Dropped Sensor Array. 01116_ Acquired Imp. EM Shotgun. Map ----- +----------------------------------------------------+ | ????????????????????????????????# #????????????? | | ????????????????????????????????# #????????????? | | ??????????????????????###+??????# #????????????? | | ???? # ! """ # #### ##### #????????????? | | ???? # """ # ####?????????? | | ???? # """ + ??????????? | | ???? # # #???????????? | | ???? # """ ###### ##### #???????????? | | ???? # """ #????#######???# #???????????? | | ???? # """ #???????######## #???????????? | | ???? # #???????# # #???????+???? | | ??##+################????# #?????? #???? | | ?? ^ #????# ## # #????? #???? | | ?? #??########## ##### #???? | | ? ^ #??# *%| #???? | | ???^ ^ #### ! #???? | | ???^ """ """ %^ ! % ! """ +???? | | ???? """ """ ! /"### """ #???? | | ???? """ """ = T#?#[ g """ k##+######???? | | ??# """ """ = %=!"#?# g """ ##? ???????? | | ??# [ #?# m #???"" ??????? | | ??# % = #?# "T" #???"" ?????? | | ??######## * ##?# """ #???????#????? | | ???? # #??# #????????????? | | ???? # #??# #????????????? | | ???? + ##### ######@####### #????????????? | | ???? # #???# ## #??# #????????????? | | ???? # #???# ## """ #??# #????????????? | | ???? "" # #####+## """ #?## ##???????????? | | ???? S"" # # # """ #?# #???????????? | | ???? "" # # ] # ### #???????????? | | ???? # # # " " + T #???????????? | | ????###### + # "R" ### ! #???????????? | | ?????????# # "T" # """ #?#* / #???????????? | | ?????????# # """ # #?###!###???????????? | | ?????????# #################???# #?????????????? | | ?????????# # #???????????##%##????????????? | | ?????????# # """ =#???????????# [*#######??????? | | ?????????# !#*""" #???????????#==[= #??????? | | ?????????# =%/ """ #???????????# ! * #??????? | | ?????????# [# [ #???????????###==! #??????? | | ?????????# # #?????????????# #??????? | | ?????????# ##+##########????????# [#?????## | | ?????????# #???# ########## [ #?????# | | ?????????# #???# + ] ]!#?????# | | ??#??????# #???# # ! =#?????# | | ??? ?????# #???# # ####### | | ??"""????# #???# + * + | | ??""" ???# #???# ##########+##### ####### | | ????" ??# #???# #????# == #?# #?????# | +----------------------------------------------------+ Best States ------------- Heat Dissipation 28 Energy Generation 10 Energy Capacity 250 Matter Stores 300 Matter Capacity 300 Sight Range 18 Terrain Scan Density 10 Armor Coverage 150 Evasion (%) 63 Item Schematics ----------------- None Robot Schematics ------------------ None Fabricated ------------ Nothing Alien Tech Used ----------------- None Achievements -------------- None Challenges ------------ None Game ------ Seed InsulatedPiercingLance Manual? 0 Play Time 00:22:16 Cumulative 94.4 hours Start 2024.04.15 @ 16:44:55 End 2024.04.15 @ 19:49:48 Sessions 1 Manual Loads 0 Difficulty Rogue Special Mode None Game No. 189 Rogue 189 Adventurer 0 Explorer 0 Win Type - Total 0 Types 0/0/0/0/0/0/0/0/0 Lore% 30 Gallery% 49 Achievement% 35 Wizard Run 0 Options --------- Layout 0 ASCII 0 Keyboard 1 Movement Numpad Keybinds 0 Fullscreen 1 Font 18/X11 Map View 76x50 Zoom Use 0% Tactical HUD 1 Map Filters NONE Filters NONE Steam 1 RUN: 81d1c5ee-bc42-4c9d-8246-407a75e8e36c